fUST/lending_fUST_20240429
["ID","MTS","AMOUNT","RATE_DAILY","PERIOD"]
[324874810,1714387841016,-224.34545947,0.00026574,2]
[324874812,1714387841025,-999.0,0.00026575,4]
[324874814,1714387841034,-371.09245727,0.00026586,2]
[324874816,1714387841043,-14465.99,0.000266,2]
[324874818,1714387841052,-391.10655818,0.000266,2]
[324874820,1714387841061,-2176.09541926,0.000266,2]
[324874822,1714387841071,-22961.14751909,0.000266,7]
[324874824,1714387841080,-186.17692927,0.00026744,2]
[324874826,1714387841089,-177.81765597,0.00026787,2]
[324874828,1714387841098,-1049.63196488,0.00026805,2]
[324874830,1714387841107,-163.28555011,0.00026833,2]
[324874832,1714387841116,-163.28555011,0.00026846,2]
[324874834,1714387841125,-371.09245727,0.00026867,2]
[324874836,1714387841134,-14465.99,0.000269,2]
[324874838,1714387841143,-600.0,0.000269,2]
[324874840,1714387841152,-163.28555011,0.00026924,2]
[324874842,1714387841161,-158.20865679,0.00026929,2]
[324874844,1714387841169,-177.81765597,0.00026941,2]
[324874846,1714387841178,-177.81765597,0.00026944,2]
[324874848,1714387841187,-214.6902989,0.0002695,3]
[324874850,1714387841196,-7615.11518896,0.0002699,2]
[324874852,1714387841205,-177.81765597,0.00026992,2]
[324874854,1714387841213,-173.41169288,0.00026997,2]
[324874856,1714387841222,-67873.29816313,0.00027,7]
[324874858,1714387841232,-1000.0,0.00027,2]
[324874860,1714387841241,-1000.0,0.00027,2]
[324874862,1714387841250,-1000.0,0.00027,2]
[324874864,1714387841259,-1000.0,0.00027,2]
[324874866,1714387841268,-1000.0,0.00027,2]
[324874868,1714387841277,-2000.0,0.00027,2]
[324874870,1714387841287,-1500.0,0.00027,2]
[324874872,1714387841295,-1500.0,0.00027,2]
[324874874,1714387841309,-1500.0,0.00027,2]
[324874876,1714387841319,-1500.0,0.00027,2]
[324874878,1714387841328,-1500.0,0.00027,2]
[324874880,1714387841338,-1500.0,0.00027,2]
[324874882,1714387841347,-1785.52,0.00027,2]
[324874884,1714387841356,-8526.04158814,0.00027,2]
[324874886,1714387841365,-272089.03467369,0.00027,15]
[324874888,1714387841374,-14034.89303902,0.00027,7]
[324874890,1714387841383,-32043.33338402,0.00027,15]
[324874892,1714387841392,-2672.0,0.00027,2]
[324874894,1714387841401,-10000.0,0.00027,2]
[324874896,1714387841410,-16042.0,0.00027,2]
[324874898,1714387841419,-805.0,0.00027,2]
[324874900,1714387841428,-189.0,0.00027064,2]
[324874902,1714387841438,-177.81765597,0.00027092,2]
[324874904,1714387841447,-163.28555011,0.00027105,2]
[324874906,1714387841455,-1049.63196488,0.00027114,2]
[324874915,1714387841553,-186.17692927,0.00027117,2]
[324874916,1714387841562,-177.81765597,0.00027122,2]
[324874917,1714387841572,-173.16460036,0.0002718,2]
[324874918,1714387841581,-266.92033511,0.00027228,2]
[324874919,1714387841590,-266.92033511,0.0002726,2]
[324874920,1714387841600,-177.81765597,0.00027273,2]
[324874921,1714387841610,-14465.99,0.000273,2]
[324874922,1714387841619,-371.09245727,0.00027307,2]
[324874923,1714387841628,-1049.63196488,0.00027346,2]
[324874925,1714387841637,-177.81765597,0.00027351,2]
[324874927,1714387841646,-500.0,0.00027397,2]
[324874929,1714387841656,-500.0,0.00027397,30]
[324874931,1714387841665,-500.0,0.00027397,30]
[324874933,1714387841674,-500.0,0.00027397,2]
[324874935,1714387841685,-1000.0,0.00027397,2]
[324874937,1714387841695,-166.666666,0.00027397,2]
[324874939,1714387841704,-975.39188186,0.000274,2]
[324874941,1714387841713,-1049.63196488,0.00027425,2]
[324874943,1714387841722,-186.17692927,0.00027484,2]
[324874945,1714387841731,-16014.73499659,0.000275,2]
[324874946,1714387841746,-27274.87034141,0.000275,2]
[324874947,1714387841756,-802.10050589,0.000275,17]
[324874948,1714387841765,-1613.0,0.00027536,2]
[324874949,1714387841774,-163.28555011,0.00027549,2]
[324874950,1714387841783,-150.77383924,0.00027554,2]
[324874951,1714387841792,-186.17692927,0.00027562,2]
[324874952,1714387841803,-1049.63196488,0.00027625,2]
[324874953,1714387841812,-115716.21028433,0.0002763,2]
[324874954,1714387841822,-266.92033511,0.0002767,2]
[324874955,1714387841831,-500.0,0.00027671,2]
[324874956,1714387841840,-999.0,0.00027671,6]
[324874957,1714387841849,-177.81765597,0.00027737,2]
[324874958,1714387841859,-177.81765597,0.00027752,2]
[324874959,1714387841871,-1049.63196488,0.00027783,2]
[324874960,1714387841880,-153.0,0.0002779,2]
[324874961,1714387841889,-153.0,0.0002779,2]
[324874962,1714387841899,-153.0,0.0002779,2]
[324874963,1714387841908,-153.0,0.0002779,2]
[324874964,1714387841918,-153.0,0.0002779,2]
[324874965,1714387841928,-153.0,0.0002779,2]
[324874966,1714387841938,-153.0,0.0002779,2]
[324874967,1714387841947,-153.0,0.0002779,2]
[324874968,1714387841957,-153.0,0.0002779,2]
[324874969,1714387841966,-153.0,0.0002779,2]
[324874970,1714387841975,-269.7553959,0.0002779,2]
[324874971,1714387841984,-153.0,0.0002779,2]
[324874972,1714387841994,-153.0,0.0002779,2]
[324874973,1714387842003,-153.0,0.0002779,2]
[324874974,1714387842014,-153.0,0.0002779,2]
[324874975,1714387842024,-153.0,0.0002779,2]
[324874976,1714387842033,-1049.63196488,0.00027896,2]
[324874977,1714387842043,-14465.99,0.000279,2]
[324874978,1714387842053,-266.92033511,0.00027901,2]
[324874979,1714387842063,-371.09245727,0.00027909,2]
[324874980,1714387842072,-371.09245727,0.00027938,2]
[324874981,1714387842081,-500.0,0.00027945,2]
[324874982,1714387842090,-2405.9576,0.00027999,30]
[324874983,1714387842099,-220.86091582,0.00028,2]
[324874984,1714387842108,-3754.1809699,0.00028,3]
[324874985,1714387842118,-295.68293819,0.00028,2]
[324874986,1714387842129,-166.666666,0.00028038,2]
[324874987,1714387842138,-186.17692927,0.00028063,2]
[324874988,1714387842148,-1049.63196488,0.00028082,2]
[324874989,1714387842157,-163.28555011,0.00028092,2]
[324874990,1714387842168,-1049.63196488,0.00028125,2]
[324874991,1714387842177,-186.17692927,0.00028132,2]
[324874992,1714387842186,-186.17692927,0.00028163,2]
[324874993,1714387842195,-266.92033511,0.00028189,2]
[324874994,1714387842204,-500.0,0.00028219,2]
[324874995,1714387842213,-1049.63196488,0.00028236,2]
[324874996,1714387842222,-186.17692927,0.00028258,2]
[324874997,1714387842231,-163.28555011,0.00028303,2]
[324874998,1714387842241,-163.28555011,0.00028337,2]
[324874999,1714387842250,-177.81765597,0.00028443,2]
[324875000,1714387842259,-177.81765597,0.00028448,2]
[324875001,1714387842268,-266.92033511,0.00028456,2]
[324875002,1714387842278,-500.0,0.00028493,2]
[324875003,1714387842287,-750.0,0.00028493,2]
[324875004,1714387842296,-168.373609,0.00028493,2]
[324875005,1714387842309,-168.373609,0.00028493,12]
[324875006,1714387842319,-168.373609,0.00028493,23]
[324875009,1714387842328,-168.373609,0.00028493,34]
[324875010,1714387842338,-168.373609,0.00028493,44]
[324875012,1714387842347,-168.373609,0.00028493,55]
[324875013,1714387842356,-168.373609,0.00028493,66]
[324875014,1714387842365,-168.373609,0.00028493,77]
[324875015,1714387842374,-168.373609,0.00028493,87]
[324875016,1714387842385,-168.373609,0.00028493,98]
[324875017,1714387842396,-168.373609,0.00028493,109]
[324875019,1714387842405,-168.373609,0.00028493,119]
[324875021,1714387842414,-1049.63196488,0.00028542,2]
[324875023,1714387842423,-266.92033511,0.00028542,2]
[324875024,1714387842432,-163.28555011,0.00028581,2]
[324875026,1714387842441,-153.0,0.00028612,2]
[324875027,1714387842451,-153.0,0.00028612,2]
[324875029,1714387842459,-153.0,0.00028612,2]
[324875031,1714387842468,-153.0,0.00028612,2]
[324875033,1714387842477,-153.0,0.00028612,2]
[324875035,1714387842488,-153.0,0.00028612,2]
[324875036,1714387842497,-153.0,0.00028612,2]
[324875037,1714387842506,-153.0,0.00028612,2]
[324875038,1714387842515,-153.0,0.00028612,2]
[324875039,1714387842524,-153.0,0.00028612,2]
[324875040,1714387842533,-153.0,0.00028612,2]
[324875041,1714387842542,-153.0,0.00028612,2]
[324875043,1714387842551,-153.0,0.00028612,2]
[324875045,1714387842560,-203.7672836,0.00028612,2]
[324875047,1714387842569,-203.7672836,0.00028612,2]
[324875050,1714387842578,-186.17692927,0.00028625,2]
[324875052,1714387842586,-266.92033511,0.0002866,2]
[324875055,1714387842595,-166.666666,0.00028679,2]
[324875058,1714387842605,-189.0,0.00028756,2]
[324875061,1714387842614,-186.17692927,0.00028756,2]
[324875063,1714387842623,-500.0,0.00028767,2]
[324875066,1714387842632,-500.0,0.00028767,10]
[324875068,1714387842641,-999.0,0.00028767,8]
[324875070,1714387842650,-127137.53332959,0.0002877,2]
[324875098,1714387842937,-6022.09140271,0.0002877,2]
[324875099,1714387843049,-502.00264863,0.00019178,2]
[324875100,1714387843060,-500.0,0.00019178,2]
[324875101,1714387843071,-500.0,0.00019178,2]
[324875102,1714387843081,-500.0,0.00019178,2]
[324875103,1714387843090,-500.0,0.00019178,2]
[324875104,1714387843100,-500.0,0.00019178,2]
[324875105,1714387843110,-500.0,0.00019178,2]
[324875106,1714387843119,-554.88249345,0.00019178,2]
[324875108,1714387843128,-500.0,0.00019178,2]
[324875110,1714387843137,-37336.44164078,0.0002877,2]
[324875114,1714387843205,-7934.04214632,0.00019177,2]
[324875115,1714387843214,-346.82,0.0002599,3]
[324875116,1714387843223,-693.64,0.0002736,3]
[324875117,1714387843232,-17887.67613851,0.0002877,2]
[324875118,1714387843242,-371.09245727,0.00028773,2]
[324875119,1714387843252,-266.92033511,0.00028833,2]
[324875120,1714387843261,-177.81765597,0.00028868,2]
[324875121,1714387843270,-790.61322948,0.00028889,9]
[324875122,1714387843279,-177.81765597,0.00028941,2]
[324875123,1714387843289,-189.0,0.00028997,2]
[324875124,1714387843298,-843.12637382,0.00029,2]
[324875125,1714387843312,-500.0,0.00029041,2]
[324875126,1714387843322,-1049.63196488,0.0002905,2]
[324875127,1714387843330,-158.20865679,0.00029051,2]
[324875128,1714387843340,-186.17692927,0.0002906,2]
[324875129,1714387843351,-186.17692927,0.00029091,2]
[324875130,1714387843360,-163.28555011,0.00029109,2]
[324875131,1714387843370,-1049.63196488,0.00029135,2]
[324875132,1714387843380,-177.81765597,0.0002914,2]
[324875133,1714387843389,-163.28555011,0.00029215,2]
[324875134,1714387843400,-520.36353622,0.00029219,3]
[324875135,1714387843410,-186.17692927,0.00029241,2]
[324875136,1714387843420,-266.92033511,0.00029286,2]
[324875137,1714387843429,-1049.63196488,0.0002929,2]
[324875138,1714387843439,-186.17692927,0.00029292,2]
[324875139,1714387843448,-500.0,0.00029315,2]
[324875140,1714387843458,-166.666666,0.00029321,2]
[324875141,1714387843467,-186.17692927,0.00029323,2]
[324875142,1714387843475,-266.92033511,0.0002939,2]
[324875143,1714387843484,-186.17692927,0.0002941,2]
[324875144,1714387843494,-203.7672836,0.00029434,2]
[324875145,1714387843503,-203.7672836,0.00029434,2]
[324875146,1714387843513,-203.7672836,0.00029434,2]
[324875147,1714387843522,-203.7672836,0.00029434,2]
[324875148,1714387843531,-203.7672836,0.00029434,2]
[324875149,1714387843540,-203.7672836,0.00029434,2]
[324875150,1714387843549,-203.7672836,0.00029434,2]
[324875151,1714387843558,-203.7672836,0.00029434,2]
[324875152,1714387843568,-203.7672836,0.00029434,2]
[324875153,1714387843577,-203.7672836,0.00029434,2]
[324875154,1714387843587,-203.7672836,0.00029434,2]
[324875155,1714387843596,-203.7672836,0.00029434,2]
[324875156,1714387843605,-203.7672836,0.00029434,2]
[324875157,1714387843614,-203.7672836,0.00029434,2]
[324875158,1714387843623,-203.7672836,0.00029434,2]
[324875159,1714387843632,-203.7672836,0.00029434,2]
[324875160,1714387843641,-203.7672836,0.00029434,2]
[324875161,1714387843651,-203.7672836,0.00029434,2]
[324875162,1714387843660,-203.7672836,0.00029434,2]
[324875163,1714387843669,-203.7672836,0.00029434,2]
[324875164,1714387843678,-201.6400031,0.00029434,2]
[324875165,1714387843687,-186.17692927,0.00029438,2]
[324875166,1714387843696,-163.28555011,0.00029483,2]
[324875167,1714387843704,-266.92033511,0.00029516,2]
[324875168,1714387843714,-371.09245727,0.00029563,2]
[324875169,1714387843723,-500.0,0.00029589,2]
[324875170,1714387843732,-371.09245727,0.00029594,2]
[324875171,1714387843741,-177.81765597,0.00029645,2]
[324875172,1714387843750,-186.17692927,0.00029648,2]
[324875173,1714387843760,-177.81765597,0.00029649,2]
[324875174,1714387843769,-177.81765597,0.00029667,2]
[324875175,1714387843778,-1049.63196488,0.00029678,2]
[324875176,1714387843787,-163.28555011,0.00029733,2]
[324875177,1714387843796,-186.17692927,0.00029796,2]
[324875178,1714387843806,-500.0,0.00029863,2]
[324875179,1714387843815,-999.0,0.00029863,10]
[324875180,1714387843826,-158.20865679,0.0002993,2]
[324875181,1714387843835,-166.666666,0.00029962,2]
[324875182,1714387843846,-172.14376271,0.00029998,2]
[324875183,1714387843856,-371.09245727,0.00029998,2]
[324875184,1714387843866,-216.5106,0.00029999,30]
[324875185,1714387843878,-154.82968734,0.0003,4]
[324875186,1714387843887,-3642.35806573,0.0003,2]
[324875187,1714387843895,-576.80052835,0.0003,2]
[324875188,1714387843908,-2659.0,0.0003,2]
[324875189,1714387843919,-154.82968734,0.0003,4]
[324875190,1714387843928,-154.82968734,0.0003,4]
[324875191,1714387843938,-500.0,0.0003,7]
[324875192,1714387843947,-43684.1035663,0.0003,7]
[324875193,1714387843957,-379.90071746,0.0003,10]
[324875194,1714387843968,-7680.7108169,0.0003,10]
[324875195,1714387843977,-278.01997231,0.0003,2]
[324875196,1714387843986,-12198.11109268,0.0003,5]
[324875197,1714387843995,-1329.78267311,0.0003,4]
[324875198,1714387844004,-244.68886022,0.0003,30]
[324875199,1714387844014,-2884.87,0.0003,120]
[324875200,1714387844023,-813.23,0.0003,120]
[324875201,1714387844032,-216.0,0.0003,2]
[324875202,1714387844041,-268.29327545,0.0003,2]
[324875203,1714387844050,-200.0,0.00030039,120]
[324875204,1714387844059,-371.09245727,0.00030109,7]
[324875205,1714387844070,-500.0,0.00030136,2]
[324875206,1714387844079,-500.0,0.00030136,10]
[324875207,1714387844088,-371.09245727,0.00030259,7]
[324875208,1714387844097,-214.6902989,0.00030266,5]
[324875209,1714387844106,-371.09245727,0.00030281,7]
[324875210,1714387844116,-2258.0,0.0003029,2]
[324875211,1714387844125,-371.09245727,0.00030296,7]
[324875212,1714387844135,-163.28555011,0.00030398,7]
[324875213,1714387844144,-371.09245727,0.00030404,7]
[324875214,1714387844153,-500.0,0.0003041,2]
[324875215,1714387844162,-189.0,0.00030447,2]
[324875216,1714387844172,-266.92033511,0.00030479,7]
[324875217,1714387844266,-1049.63196488,0.00030593,7]
[324875218,1714387844276,-371.09245727,0.00030597,7]
[324875219,1714387844286,-1000.0,0.000306,7]
[324875220,1714387844295,-166.666666,0.00030603,2]
[324875221,1714387844308,-150.77383924,0.00030616,2]
[324875222,1714387844318,-250.11570644,0.00030616,2]
[324875223,1714387844329,-163.28555011,0.00030631,7]
[324875224,1714387844339,-163.28555011,0.00030645,7]
[324875225,1714387844348,-150.5,0.0003067,35]
[324875226,1714387844357,-150.5,0.0003068,35]
[324875227,1714387844366,-500.0,0.00030684,2]
[324875228,1714387844375,-186.17692927,0.00030684,7]
[324875229,1714387844385,-150.5,0.0003069,35]
[324875230,1714387844394,-186.17692927,0.00030762,7]
[324875231,1714387844403,-180.0,0.0003077,35]
[324875232,1714387844412,-180.0,0.0003078,35]
[324875233,1714387844421,-180.0,0.0003079,35]
[324875234,1714387844430,-500.0,0.00030882,5]
[324875235,1714387844440,-177.81765597,0.00030898,7]
[324875236,1714387844449,-163.28555011,0.00030936,7]
[324875237,1714387844458,-1049.63196488,0.0003095,7]
[324875238,1714387844468,-500.0,0.00030958,2]
[324875239,1714387844477,-507.35049898,0.00030958,12]
[324875255,1714387845874,-421.51725408,0.00019178,2]
[324875256,1714387845883,-320.08899743,0.00019178,2]
[324875257,1714387845893,-203.7672836,0.00028612,2]
[324875258,1714387845902,-491.64950102,0.00030958,12]
[324875259,1714387845911,-1437.47835857,0.00031,2]
[324875260,1714387845930,-583.00464897,0.00031,2]
[324875261,1714387845939,-1678.54285076,0.00031,2]
[324875273,1714387913433,2000.0,0.00017,2]
[324875274,1714387920687,300.0,0.00014728,2]
[324875275,1714387921321,420.0,0.00016201,2]
[324875276,1714387978117,31465.67320242,0.0001698,2]
[324875277,1714387994048,827.00749708,0.0001698,2]
[324875281,1714388100950,300.0,0.00014728,2]
[324875282,1714388101610,420.0,0.00016201,2]
[324875284,1714388220595,300.0,0.00014728,2]
[324875285,1714388221233,420.0,0.00016201,2]
[324875286,1714388255024,10000.0,0.00017,2]
[324875287,1714388342209,300.0,0.00014728,2]
[324875288,1714388342971,420.0,0.00016123,2]
[324875289,1714388400717,300.0,0.00014728,2]
[324875290,1714388401382,420.0,0.00016201,2]
[324875291,1714388458844,272.7929159,0.000165,2]
[324875292,1714388515302,173.16953981,0.00016201,2]
[324875293,1714388549399,155.12385227,0.000165,2]
[324875294,1714388551942,154.79876161,0.000165,2]
[324875295,1714388559100,154.93230635,0.000165,2]
[324875296,1714388560091,154.98110829,0.000165,2]
[324875297,1714388582786,300.0,0.00014728,2]
[324875298,1714388583667,390.0,0.00016123,2]
[324875299,1714388755112,-154.76784823,0.000177,2]
[324875300,1714388755131,-154.76784823,0.00017701,2]
[324875301,1714388755150,-12.9581916,0.00017703,2]
[324875302,1714388969112,-591.49814438,0.00017702,2]
[324875303,1714388969131,-153.7084744,0.00017703,2]
[324875304,1714388969149,-306.7805408,0.00017788,2]
[324875305,1714388969167,-189.36782433,0.00018,2]
[324875306,1714388969185,-3134.48557274,0.00018423,7]
[324875307,1714388969203,-417.0,0.00018424,2]
[324875308,1714388969221,-150.0,0.00018424,2]
[324875309,1714388969239,-603.75411,0.000185,2]
[324875310,1714388969258,-1029.5363204,0.0001889,2]
[324875311,1714388969276,-300.0,0.00018897,2]
[324875312,1714388969295,-300.0,0.00018897,2]
[324875313,1714388969313,-939.34960788,0.00018898,2]
[324875314,1714388969331,-272.67396181,0.00018898,2]
[324875315,1714388969450,-313.81237793,0.00018898,2]
[324875316,1714388969471,-730.61014924,0.00018898,2]
[324875317,1714388969491,-154.91933674,0.00018899,2]
[324875318,1714388969515,-155.56621507,0.00018899,2]
[324875319,1714388969534,-7281.8996123,0.000189,2]
[324875320,1714388969555,-5257.84649631,0.000189,2]
[324875321,1714388969576,-155.09038081,0.00019,2]
[324875322,1714388969597,-154.76784823,0.00019,2]
[324875323,1714388969618,-7934.04214632,0.00019,2]
[324875324,1714388969639,-239.19602788,0.00019,2]
[324875325,1714388969664,-366.49554713,0.00019078,2]
[324875326,1714388969686,-8824.51810293,0.00019078,2]
[324875398,1714389032885,-239.19602788,0.00019,2]
[324875399,1714389032895,-154.76784823,0.00019,2]
[324875400,1714389032906,-154.76784823,0.00019,2]
[324875401,1714389032915,-3134.48557274,0.00019077,7]
[324875402,1714389032924,-911.59256205,0.00019078,2]
[324875403,1714389032934,-183.99197408,0.000191,2]
[324875404,1714389032943,-300.0,0.00019155,2]
[324875405,1714389032952,-7934.04214632,0.00019156,2]
[324875406,1714389032961,-3971.28,0.00019167,3]
[324875407,1714389032970,-2113.75,0.00019167,3]
[324875408,1714389032979,-1056.87,0.00019167,3]
[324875409,1714389032989,-528.44,0.00019167,3]
[324875410,1714389032997,-264.22,0.00019167,3]
[324875411,1714389033007,-154.79876161,0.00019175,2]
[324875412,1714389033016,-157.09093927,0.00019175,2]
[324875413,1714389033025,-514.23297925,0.00019175,2]
[324875414,1714389033035,-272.70165246,0.00019175,2]
[324875415,1714389033045,-173.42246927,0.00019175,2]
[324875416,1714389033054,-608.070651,0.00019175,2]
[324875417,1714389033064,-189.36782433,0.00019175,2]
[324875418,1714389033073,-216.16208935,0.00019176,2]
[324875419,1714389033083,-156.16170422,0.00019176,2]
[324875420,1714389033092,-247.65090044,0.00019176,2]
[324875421,1714389033102,-2482.72261834,0.00019176,2]
[324875422,1714389033114,-105.04522587,0.00019176,2]
[324875423,1714389033123,-1967.2358906,0.00019177,3]
[324875440,1714389038101,-129.21547622,0.00019177,3]
[324875441,1714389038111,-1369.93217697,0.00019177,2]
[324875442,1714389038122,-30160.23571244,0.00019177,2]
[324875443,1714389038136,-7257.3326265,0.00019177,2]
[324875444,1714389038147,-372783.32089315,0.00019177,2]
[324875445,1714389038159,-267.248012,0.00019178,2]
[324875446,1714389038170,-500.0,0.00019178,2]
[324875447,1714389038180,-500.0,0.00019178,2]
[324875448,1714389038190,-500.0,0.00019178,2]
[324875449,1714389038201,-585.63493634,0.00019178,2]
[324875450,1714389038213,-500.0,0.00019178,2]
[324875451,1714389038224,-454.79897666,0.00019178,2]
[324875452,1714389038235,-500.0,0.00019178,2]
[324875453,1714389038244,-500.0,0.00019178,2]
[324875454,1714389038255,-500.0,0.00019178,2]
[324875455,1714389038265,-500.0,0.00019178,2]
[324875456,1714389038276,-500.0,0.00019178,2]
[324875457,1714389038285,-500.0,0.00019178,2]
[324875458,1714389038294,-500.0,0.00019178,2]
[324875459,1714389038303,-500.0,0.00019178,2]
[324875460,1714389038315,-500.0,0.00019178,2]
[324875461,1714389038324,-500.0,0.00019178,2]
[324875462,1714389038333,-500.0,0.00019178,2]
[324875463,1714389038343,-500.0,0.00019178,2]
[324875464,1714389038351,-500.0,0.00019178,2]
[324875465,1714389038363,-500.0,0.00019178,2]
[324875466,1714389038373,-500.0,0.00019178,2]
[324875467,1714389038383,-603.88531289,0.00019178,2]
[324875468,1714389038392,-500.0,0.00019178,2]
[324875469,1714389038402,-500.0,0.00019178,2]
[324875470,1714389038411,-500.0,0.00019178,2]
[324875471,1714389038420,-500.0,0.00019178,2]
[324875472,1714389038429,-500.0,0.00019178,2]
[324875473,1714389038439,-500.0,0.00019178,2]
[324875474,1714389038448,-500.0,0.00019178,2]
[324875475,1714389038457,-500.0,0.00019178,2]
[324875476,1714389038466,-500.0,0.00019178,2]
[324875477,1714389038475,-500.0,0.00019178,2]
[324875478,1714389038485,-500.0,0.00019178,2]
[324875479,1714389038494,-500.0,0.00019178,2]
[324875480,1714389038503,-460.81829266,0.00019178,2]
[324875481,1714389038512,-500.0,0.00019178,2]
[324875482,1714389038522,-500.0,0.00019178,2]
[324875483,1714389038531,-500.0,0.00019178,2]
[324875484,1714389038540,-500.0,0.00019178,2]
[324875485,1714389038549,-500.0,0.00019178,2]
[324875486,1714389038558,-500.0,0.00019178,2]
[324875487,1714389038571,-500.0,0.00019178,2]
[324875488,1714389038580,-500.0,0.00019178,2]
[324875489,1714389038589,-500.0,0.00019178,2]
[324875490,1714389038599,-500.0,0.00019178,2]
[324875491,1714389038608,-500.0,0.00019178,2]
[324875492,1714389038617,-500.0,0.00019178,2]
[324875493,1714389038626,-500.0,0.00019178,2]
[324875494,1714389038636,-500.0,0.00019178,2]
[324875495,1714389038646,-500.0,0.00019178,2]
[324875496,1714389038656,-500.0,0.00019178,2]
[324875497,1714389038669,-500.0,0.00019178,2]
[324875498,1714389038678,-500.0,0.00019178,2]
[324875499,1714389038687,-500.0,0.00019178,2]
[324875500,1714389038698,-500.0,0.00019178,2]
[324875501,1714389038708,-500.0,0.00019178,2]
[324875502,1714389038717,-500.0,0.00019178,2]
[324875503,1714389038726,-280.09178723,0.00019178,2]
[324875504,1714389038736,-500.0,0.00019178,2]
[324875505,1714389038746,-250.0,0.00019178,2]
[324875506,1714389038755,-500.0,0.00019178,2]
[324875507,1714389038764,-500.0,0.00019178,2]
[324875508,1714389038773,-500.0,0.00019178,2]
[324875509,1714389038782,-500.0,0.00019178,2]
[324875510,1714389038791,-500.0,0.00019178,2]
[324875511,1714389038800,-500.0,0.00019178,2]
[324875512,1714389038810,-500.0,0.00019178,2]
[324875513,1714389038819,-500.0,0.00019178,2]
[324875514,1714389038828,-500.0,0.00019178,2]
[324875515,1714389038838,-500.0,0.00019178,2]
[324875516,1714389038847,-500.0,0.00019178,2]
[324875517,1714389038856,-500.0,0.00019178,2]
[324875518,1714389038865,-500.0,0.00019178,2]
[324875519,1714389038874,-500.0,0.00019178,2]
[324875520,1714389038883,-500.0,0.00019178,2]
[324875521,1714389038893,-500.0,0.00019178,2]
[324875522,1714389038901,-500.0,0.00019178,2]
[324875523,1714389038910,-500.0,0.00019178,2]
[324875524,1714389038919,-500.0,0.00019178,2]
[324875525,1714389038929,-500.0,0.00019178,2]
[324875526,1714389038938,-500.0,0.00019178,2]
[324875527,1714389038947,-500.0,0.00019178,2]
[324875528,1714389038957,-500.0,0.00019178,2]
[324875529,1714389038967,-500.0,0.00019178,2]
[324875530,1714389038976,-500.0,0.00019178,2]
[324875531,1714389038986,-400.0,0.00019178,2]
[324875532,1714389038995,-500.0,0.00019178,2]
[324875533,1714389039005,-500.0,0.00019178,2]
[324875534,1714389039014,-500.0,0.00019178,2]
[324875535,1714389039023,-500.0,0.00019178,2]
[324875536,1714389039033,-500.0,0.00019178,2]
[324875537,1714389039043,-500.0,0.00019178,2]
[324875538,1714389039053,-500.0,0.00019178,2]
[324875539,1714389039063,-500.0,0.00019178,2]
[324875540,1714389039072,-500.0,0.00019178,2]
[324875541,1714389039082,-537.2862532,0.00019178,2]
[324875542,1714389039091,-500.0,0.00019178,2]
[324875543,1714389039100,-500.0,0.00019178,2]
[324875544,1714389039109,-161.972289,0.00019178,2]
[324875545,1714389039118,-160.644991,0.00019178,2]
[324875546,1714389039127,-154.35997309,0.00019799,2]
[324875547,1714389039136,-241.68429594,0.0002,2]
[324875548,1714389039146,-67415.61392424,0.0002,2]
[324875549,1714389039155,-329.93912296,0.0002,2]
[324875550,1714389039165,-80000.0,0.0002,2]
[324875551,1714389039174,-22961.14751909,0.0002,2]
[324875552,1714389039182,-177.0,0.0002,2]
[324875553,1714389039192,-299.68975861,0.0002,2]